[Event "Panevezys Elite Open 2019"]
[Site "Panevezys"]
[Date "2019.06.30"]
[Round "9"]
[White "Juksta, Karolis"]
[Black "Semjonovs, Ilja"]
[Result "1/2-1/2"]
[ECO "D85"]
[WhiteElo "2261"]
[BlackElo "2383"]
[Annotator "NA"]
[PlyCount "100"]
[EventDate "2019.??.??"]
[EventCountry "LTU"]
[SourceTitle "playchess.com"]
[Source "ChessBase"]
[SourceQuality "1"]
[TimeControl "40/5400+30:1800+30"]

1. d4 Nf6 2. c4 g6 3. Nc3 d5 4. cxd5 Nxd5 5. e4 Nxc3 6. bxc3 Bg7 7. Nf3 O-O 8. Be2 c5 9. O-O b6 10. Bg5 Bb7 11. Qd3 cxd4 12. cxd4 Qd7 13. Rad1 e6 14. Qe3 Nc6 15. d5 exd5 16. exd5 Na5 17. Ne5 Bxe5 18. Qxe5 f6 19. Bxf6 Rae8 20. Qb2 Rxe2 21. Qxe2 Rxf6 22. Rd4 b5 23. h4 Nc4 24. Rfd1 Nd6 25. h5 Kg7 26. Qe5 Nf7 27. h6+ Nxh6 28. Rf4 Qd6 29. Qxf6+ Qxf6 30. Rxf6 Kxf6 31. Rb1 Nf7 32. Rxb5 Nd6 33. Rc5 a6 34. f3 h5 35. Kf2 Ke5 36. Ke3 Bxd5 37. a4 h4 38. Kd3 Ke6 39. Ke3 g5 40. Rc7 g4 41. fxg4 Bxg2 42. Rh7 h3 43. Kf4 Nc4 44. Rh6+ Kf7 45. Kg3 a5 46. Rh5 Ne3 47. Rxa5 Nxg4 48. Kxg4 h2 49. Rh5 h1=Q 50. Rxh1 Bxh1 1/2-1/2

[Event "Panevezys Elite Open 2019"]
[Site "Panevezys"]
[Date "2019.06.30"]
[Round "9"]
[White "Sliwicka, Alicja"]
[Black "Rudzinska, Michalina"]
[Result "1/2-1/2"]
[ECO "B54"]
[WhiteElo "2261"]
[BlackElo "2143"]
[Annotator "NA"]
[PlyCount "103"]
[EventDate "2019.??.??"]
[EventCountry "LTU"]
[SourceTitle "playchess.com"]
[Source "ChessBase"]
[SourceQuality "1"]
[TimeControl "40/5400+30:1800+30"]

1. e4 c5 2. Nf3 e6 3. c4 a6 4. Nc3 Nc6 5. d4 cxd4 6. Nxd4 Qc7 7. Be3 Nf6 8. Rc1 Be7 9. Be2 d6 10. f3 O-O 11. O-O Nxd4 12. Bxd4 Nd7 13. Qd2 b6 14. Rfd1 Bb7 15. Bf1 Rac8 16. a3 Qb8 17. Qf2 Bd8 18. Qg3 g6 19. Qh3 Bg5 20. Rc2 e5 21. Bf2 Bc6 22. Bh4 Be3+ 23. Bf2 Bxf2+ 24. Rxf2 Nc5 25. Qh6 Ne6 26. Nd5 Bxd5 27. cxd5 Ng7 28. Bxa6 Rc5 29. Bd3 f5 30. Qd2 Qc7 31. a4 fxe4 32. fxe4 Rxf2 33. Qxf2 Rc1 34. Rxc1 Qxc1+ 35. Bf1 Qc7 36. b4 Nh5 37. b5 Kg7 38. a5 bxa5 39. b6 Qb8 40. Qb2 Nf6 41. Qb5 a4 42. Qc6 a3 43. Bc4 Kh6 44. Qc7 Nd7 45. Qxb8 Nxb8 46. Kf2 Nd7 47. b7 Kg5 48. Ke3 Kf6 49. Kd2 Ke7 50. Kc3 Kd8 51. Bb5 Nb8 52. Kb3 1/2-1/2

[Event "Panevezys Elite Open 2019"]
[Site "Panevezys"]
[Date "2019.06.30"]
[Round "9"]
[White "Zaura, Vidmantas"]
[Black "Cholleti Sahajasri"]
[Result "1/2-1/2"]
[ECO "A37"]
[WhiteElo "2223"]
[BlackElo "2207"]
[Annotator "NA"]
[PlyCount "73"]
[EventDate "2019.??.??"]
[EventCountry "LTU"]
[SourceTitle "playchess.com"]
[Source "ChessBase"]
[SourceQuality "1"]
[TimeControl "40/5400+30:1800+30"]

1. Nf3 c5 2. c4 Nc6 3. Nc3 g6 4. g3 Bg7 5. Bg2 e6 6. e3 Nge7 7. d4 cxd4 8. exd4 d5 9. O-O O-O 10. cxd5 exd5 11. Qb3 Bg4 12. Be3 Qd7 13. Rfe1 Rfe8 14. Ne2 Nf5 15. Nf4 Rad8 16. h3 Bxf3 17. Bxf3 Nfxd4 18. Bxd4 Nxd4 19. Rxe8+ Qxe8 20. Qd3 Nxf3+ 21. Qxf3 Qe4 22. Qb3 d4 23. Nd3 Qf5 24. Rc1 Qxh3 25. Rc7 Qf5 26. Rxb7 h5 27. Rxa7 h4 28. gxh4 Qg4+ 29. Kf1 Qh3+ 30. Kg1 Qg4+ 31. Kf1 Qf3 32. Re7 Bf8 33. Re5 Qh3+ 34. Ke2 Qxh4 35. Qb7 Bd6 36. Qe4 Qh3 37. Re8+ 1/2-1/2

[Event "Panevezys Elite Open 2019"]
[Site "Panevezys"]
[Date "2019.06.30"]
[Round "9"]
[White "Zhukov, Anton"]
[Black "Stremavicius, Titas"]
[Result "0-1"]
[ECO "D37"]
[WhiteElo "2178"]
[BlackElo "2477"]
[Annotator "ChessBase"]
[PlyCount "78"]
[EventDate "2019.??.??"]
[EventCountry "LTU"]
[SourceTitle "playchess.com"]
[Source "ChessBase"]
[SourceQuality "1"]
[TimeControl "40/5400+30:1800+30"]

1. d4 Nf6 2. c4 e6 3. Nf3 d5 4. Nc3 Nbd7 5. Bf4 dxc4 6. e3 Nd5 7. Bxc4 Nxf4 8. exf4 Nb6 9. Bb3 g6 10. O-O Bg7 11. Rc1 O-O 12. Qe2 a5 13. a3 Nd5 14. g3 Ne7 15. Rfd1 c6 16. Bc2 Nd5 17. Bb1 a4 18. h4 Ra5 19. Ne5 Nxc3 20. Rxc3 Qe7 21. h5 Rd8 22. hxg6 hxg6 23. Be4 Bd7 24. Kg2 Be8 25. Qc2 g5 26. fxg5 Bxe5 27. dxe5 Rxd1 28. Qxd1 Rxe5 29. Qxa4 c5 30. Qc2 Rxe4 31. Rxc5 Rd4 32. Rc8 Rd8 33. Qc7 Qxc7 34. Rxc7 Bc6+ 35. Kf1 Bf3 36. Rc1 Rd2 37. Rb1 Kg7 38. a4 Be4 39. Ke1 Rxf2 0-1

[Event "Panevezys Elite Open 2019"]
[Site "Panevezys"]
[Date "2019.06.30"]
[Round "9"]
[White "Kaunas, Kestutis"]
[Black "Kalinowska, Zuzanna"]
[Result "1/2-1/2"]
[ECO "E16"]
[WhiteElo "2151"]
[BlackElo "2093"]
[Annotator "NA"]
[PlyCount "106"]
[EventDate "2019.??.??"]
[EventCountry "LTU"]
[SourceTitle "playchess.com"]
[Source "ChessBase"]
[SourceQuality "1"]
[TimeControl "40/5400+30:1800+30"]

1. d4 Nf6 2. c4 e6 3. Nf3 b6 4. g3 Bb7 5. Bg2 Bb4+ 6. Nbd2 c5 7. a3 Bxd2+ 8. Qxd2 cxd4 9. Qxd4 Nc6 10. Qc3 h6 11. b4 Ne7 12. O-O Rc8 13. Bb2 Qc7 14. Rac1 O-O 15. Rfd1 Rfd8 16. Qd3 Ne8 17. c5 bxc5 18. Rxc5 Qb8 19. Rxc8 Qxc8 20. a4 d6 21. b5 Qa8 22. Bf1 Ng6 23. Rc1 Rc8 24. Rxc8 Qxc8 25. Qc3 Ne7 26. Qxc8 Nxc8 27. Nd2 Nc7 28. e4 a6 29. bxa6 Nxa6 30. f3 Nc5 31. a5 Kf8 32. Kf2 e5 33. Ba3 Ke7 34. Bxc5 dxc5 35. a6 Ba8 36. Nc4 f6 37. Bh3 Na7 38. Ke3 Bc6 39. Nb6 Kd8 40. Be6 Kc7 41. Nd5+ Kd6 42. Bg8 Bb5 43. Nb6 Bxa6 44. Bc4 Bxc4 45. Nxc4+ Kc6 46. f4 exf4+ 47. Kxf4 Nb5 48. e5 fxe5+ 49. Kxe5 Nd4 50. h4 Kb5 51. Nd6+ Kb4 52. h5 Ne2 53. g4 c4 1/2-1/2

[Event "Panevezys Elite Open 2019"]
[Site "Panevezys"]
[Date "2019.06.30"]
[Round "9"]
[White "Sinitsina, Anastassia"]
[Black "Harshita Guddanti"]
[Result "0-1"]
[ECO "A14"]
[WhiteElo "2095"]
[BlackElo "2072"]
[Annotator "NA"]
[PlyCount "106"]
[EventDate "2019.??.??"]
[EventCountry "LTU"]
[SourceTitle "playchess.com"]
[Source "ChessBase"]
[SourceQuality "1"]
[TimeControl "40/5400+30:1800+30"]

1. Nf3 Nf6 2. g3 d5 3. c4 e6 4. Bg2 Be7 5. O-O O-O 6. Qc2 c5 7. d3 Nc6 8. a3 d4 9. e3 e5 10. exd4 exd4 11. Re1 h6 12. Nbd2 Bd6 13. Ne4 Nxe4 14. Rxe4 Bf5 15. Re1 a5 16. Nd2 Re8 17. Ne4 Bf8 18. Bd2 a4 19. b3 Bd7 20. f4 f5 21. Nf2 axb3 22. Qxb3 Qc7 23. Bf3 Nd8 24. Bd5+ Kh8 25. Rxe8 Bxe8 26. a4 Bc6 27. Bxc6 Qxc6 28. a5 Bd6 29. Qd1 Bc7 30. Qh5 Qd7 31. Qf3 Nc6 32. Re1 Nxa5 33. Rb1 Ra7 34. Rb5 b6 35. Bxa5 Rxa5 36. Rxa5 bxa5 37. Qb7 Kh7 38. Qa6 Qe7 39. Qc6 Bd8 40. Kf1 Bc7 41. Nd1 Qd6 42. Qb5 Bd8 43. Nb2 Qe7 44. Na4 Qe3 45. Nxc5 Be7 46. Qd7 Bxc5 47. Qxf5+ Kg8 48. Qxc5 Qxd3+ 49. Kf2 a4 50. Qd5+ Kh7 51. c5 a3 52. c6 Qc2+ 53. Kf3 a2 0-1

[Event "Panevezys Elite Open 2019"]
[Site "Panevezys"]
[Date "2019.06.30"]
[Round "9"]
[White "Stasans, Aivars"]
[Black "Juknis, Paulius"]
[Result "1/2-1/2"]
[ECO "C10"]
[WhiteElo "2039"]
[BlackElo "2169"]
[Annotator "NA"]
[PlyCount "93"]
[EventDate "2019.??.??"]
[EventCountry "LTU"]
[SourceTitle "playchess.com"]
[Source "ChessBase"]
[SourceQuality "1"]
[TimeControl "40/5400+30:1800+30"]

1. e4 e6 2. d4 d5 3. Nc3 Nc6 4. e5 f6 5. exf6 Nxf6 6. Nf3 Bd6 7. Bg5 O-O 8. Bd3 Qe8 9. Qe2 Qh5 10. Bxf6 Rxf6 11. O-O-O Bd7 12. Bb5 Raf8 13. Rhe1 Qg4 14. Rg1 Bxh2 15. Nxh2 Qf4+ 16. Qe3 Qxh2 17. f3 Qh6 18. Rge1 Nb8 19. Bf1 b6 20. Kb1 Qxe3 21. Rxe3 Rc8 22. Ne2 Bb5 23. Nc1 Bxf1 24. Rxf1 c5 25. Rfe1 Rc6 26. Ra3 a5 27. dxc5 Rxc5 28. Nd3 Rc7 29. Ne5 Nd7 30. Nxd7 Rxd7 31. Rc3 Re7 32. Rc8+ Kf7 33. Rd8 Rb7 34. c3 b5 35. Kc2 g5 36. Ra8 a4 37. b3 axb3+ 38. Kxb3 Rf4 39. Ra6 b4 40. Rexe6 Rc4 41. cxb4 Rbxb4+ 42. Ka3 Rb1 43. Red6 Rc3+ 44. Ka4 Rb2 45. Rxd5 Rxa2+ 46. Kb4 Rxa6 47. Kxc3 1/2-1/2

[Event "Panevezys Elite Open 2019"]
[Site "Panevezys"]
[Date "2019.06.30"]
[Round "9.1"]
[White "Krishna Teja, N."]
[Black "Badelka, Olga"]
[Result "*"]
[ECO "D20"]
[WhiteElo "2357"]
[BlackElo "2391"]
[Annotator "ChessBase"]
[PlyCount "33"]
[EventDate "2019.06.24"]
[EventType "swiss"]
[EventCountry "LTU"]
[SourceTitle "playchess.com"]
[Source "ChessBase"]
[SourceQuality "1"]
[TimeControl "40/5400+30:1800+30"]

1. d4 {[%emt 0:02:21]} d5 {[%emt 0:00:00]} 2. c4 {[%emt 0:00:38]} dxc4 {[%emt 0:00:00]} 3. e4 {[%emt 0:00:22]} Nf6 {[%emt 0:00:00]} 4. e5 {[%emt 0:00:10]} Nd5 {[%emt 0:00:01]} 5. Bxc4 {[%emt 0:00:05]} Nb6 {[%emt 0:00:10]} 6. Bd3 {[%emt 0:00:43]} Nc6 {[%emt 0:00:07]} 7. Ne2 {[%emt 0:02:21]} Bg4 {[%emt 0:00:17]} 8. Be3 {[%emt 0:00:27]} e6 {[%emt 0:00:17]} 9. Nbc3 {[%emt 0:00:56]} Qd7 {[%emt 0:00:33]} 10. O-O {[%emt 0:09:59]} O-O-O {[%emt 0:00:15]} 11. f3 {[%emt 0:01:11]} Bh5 {[%emt 0:00:18]} 12. a4 {[%emt 0:04:22]} a6 {[%emt 0:03:00]} 13. a5 {[%emt 0:08:21]} Nd5 {[%emt 0:00:10]} 14. Nxd5 {[%emt 0:00:44]} exd5 {[%emt 0:00:07]} 15. Ng3 {[%emt 0:02:01]} Bg6 {[%emt 0:00:10]} 16. f4 {[%emt 0:00:15]} Bxd3 {[%emt 0:00:43]} 17. Qxd3 {[%emt 0:00:03]} *

[Event "Panevezys Elite Open 2019"]
[Site "Panevezys"]
[Date "2019.06.30"]
[Round "9.5"]
[White "Krykun, Yuriy"]
[Black "Krivonosov, Oleg"]
[Result "*"]
[ECO "E07"]
[WhiteElo "2342"]
[BlackElo "2411"]
[Annotator "ChessBase"]
[PlyCount "30"]
[EventDate "2019.06.24"]
[EventType "swiss"]
[EventCountry "LTU"]
[SourceTitle "playchess.com"]
[Source "ChessBase"]
[SourceQuality "1"]
[TimeControl "40/5400+30:1800+30"]

1. d4 {[%emt 0:00:00]} d5 {[%emt 0:00:00]} 2. c4 {[%emt 0:00:30]} e6 {[%emt 0:00:30]} 3. Nc3 {[%emt 0:00:30]} Be7 {[%emt 0:00:38]} 4. Nf3 Nf6 {[%emt 0:00:30]} 5. g3 {[%emt 0:01:00]} O-O {[%emt 0:00:30]} 6. Bg2 {[%emt 0:00:30]} c6 {[%emt 0:00:46]} 7. O-O {[%emt 0:00:54]} Nbd7 {[%emt 0:01:11]} 8. Qd3 {[%emt 0:01:22]} b6 9. b3 {[%emt 0:01:17]} Bb7 {[%emt 0:01:48]} 10. Bb2 {[%emt 0:01:36]} Rc8 {[%emt 0:05:32]} 11. Rfd1 Qc7 {[%emt 0:00:36]} 12. Rac1 {[%emt 0:08:51]} Qb8 13. e4 {[%emt 0:02:10]} dxe4 {[%emt 0:07:09]} 14. Nxe4 {[%emt 0:02:32]} c5 15. Nxf6+ Bxf6 {[%emt 0:03:05]} *

[Event "Panevezys Elite Open 2019"]
[Site "Panevezys"]
[Date "2019.06.30"]
[Round "9.6"]
[White "Stauskas, Lukas"]
[Black "Brazdzionis, Andrius"]
[Result "*"]
[ECO "D31"]
[WhiteElo "2306"]
[BlackElo "2337"]
[Annotator "ChessBase"]
[PlyCount "23"]
[EventDate "2019.06.24"]
[EventType "swiss"]
[EventCountry "LTU"]
[SourceTitle "playchess.com"]
[Source "ChessBase"]
[SourceQuality "1"]
[TimeControl "40/5400+30:1800+30"]

1. d4 {[%emt 0:00:00]} d5 {[%emt 0:00:00]} 2. c4 {[%emt 0:00:00]} e6 {[%emt 0:00:04]} 3. Nc3 {[%emt 0:00:00]} a6 {[%emt 0:00:08]} 4. cxd5 {[%emt 0:00:21]} exd5 {[%emt 0:00:08]} 5. Bf4 {[%emt 0:00:02]} Nf6 {[%emt 0:00:21]} 6. e3 {[%emt 0:00:07]} Bd6 {[%emt 0:00:07]} 7. Bg3 {[%emt 0:00:07]} O-O {[%emt 0:00:40]} 8. Bd3 {[%emt 0:00:32]} Re8 {[%emt 0:01:17]} 9. Nge2 {[%emt 0:01:53]} c6 {[%emt 0:04:31]} 10. Qc2 {[%emt 0:05:42]} Bg4 {[%emt 0:05:52]} 11. Bh4 {[%emt 0:01:25]} h6 {[%emt 0:02:04]} 12. f3 {[%emt 0:20:53]} *

[Event "Panevezys Elite Open 2019"]
[Site "Panevezys"]
[Date "2019.06.30"]
[Round "9.7"]
[White "Juksta, Karolis"]
[Black "Semjonovs, Ilja"]
[Result "*"]
[ECO "D85"]
[WhiteElo "2261"]
[BlackElo "2383"]
[Annotator "ChessBase"]
[PlyCount "28"]
[EventDate "2019.06.24"]
[EventType "swiss"]
[EventCountry "LTU"]
[SourceTitle "playchess.com"]
[Source "ChessBase"]
[SourceQuality "1"]
[TimeControl "40/5400+30:1800+30"]

1. d4 {[%emt 0:00:00]} Nf6 {[%emt 0:06:29]} 2. c4 {[%emt 0:00:00]} g6 {[%emt 0:00:14]} 3. Nc3 {[%emt 0:00:00]} d5 {[%emt 0:00:05]} 4. cxd5 {[%emt 0:00:00]} Nxd5 {[%emt 0:00:07]} 5. e4 {[%emt 0:00:00]} Nxc3 {[%emt 0:00:04]} 6. bxc3 {[%emt 0:00:02]} Bg7 {[%emt 0:00:05]} 7. Nf3 {[%emt 0:00:06]} O-O {[%emt 0:00:35]} 8. Be2 {[%emt 0:00:13]} c5 {[%emt 0:01:08]} 9. O-O {[%emt 0:00:10]} b6 {[%emt 0:00:32]} 10. Bg5 {[%emt 0:04:16]} Bb7 {[%emt 0:10:04]} 11. Qd3 {[%emt 0:00:07]} cxd4 {[%emt 0:02:01]} 12. cxd4 {[%emt 0:00:12]} Qd7 {[%emt 0:01:59]} 13. Rad1 {[%emt 0:01:06]} e6 {[%emt 0:01:56]} 14. Qe3 {[%emt 0:01:33]} Nc6 {[%emt 0:09:32]} *

[Event "Panevezys Elite Open 2019"]
[Site "Panevezys"]
[Date "2019.06.30"]
[Round "9.8"]
[White "Zhukov, Anton"]
[Black "Stremavicius, Titas"]
[Result "*"]
[ECO "D37"]
[WhiteElo "2178"]
[BlackElo "2477"]
[Annotator "ChessBase"]
[PlyCount "24"]
[EventDate "2019.06.24"]
[EventType "swiss"]
[EventCountry "LTU"]
[SourceTitle "playchess.com"]
[Source "ChessBase"]
[SourceQuality "1"]
[TimeControl "40/5400+30:1800+30"]

1. d4 {[%emt 0:00:00]} Nf6 {[%emt 0:00:53]} 2. c4 {[%emt 0:00:00]} e6 {[%emt 0:00:06]} 3. Nf3 {[%emt 0:00:00]} d5 {[%emt 0:00:08]} 4. Nc3 {[%emt 0:00:20]} Nbd7 {[%emt 0:00:20]} 5. Bf4 {[%emt 0:02:19]} dxc4 {[%emt 0:00:19]} 6. e3 {[%emt 0:09:12]} Nd5 {[%emt 0:00:10]} 7. Bxc4 {[%emt 0:03:01]} Nxf4 {[%emt 0:00:12]} 8. exf4 {[%emt 0:00:02]} Nb6 {[%emt 0:00:15]} 9. Bb3 {[%emt 0:02:58]} g6 {[%emt 0:00:13]} 10. O-O {[%emt 0:02:57]} Bg7 {[%emt 0:00:11]} 11. Rc1 {[%emt 0:05:19]} O-O {[%emt 0:00:40]} 12. Qe2 {[%emt 0:03:19]} a5 {[%emt 0:08:14]} *

[Event "Panevezys Elite Open 2019"]
[Site "Panevezys"]
[Date "2019.06.30"]
[Round "9.9"]
[White "Sliwicka, Alicja"]
[Black "Rudzinska, Michalina"]
[Result "*"]
[ECO "B40"]
[WhiteElo "2261"]
[BlackElo "2143"]
[Annotator "ChessBase"]
[PlyCount "33"]
[EventDate "2019.06.24"]
[EventType "swiss"]
[EventCountry "LTU"]
[SourceTitle "playchess.com"]
[Source "ChessBase"]
[SourceQuality "1"]
[TimeControl "40/5400+30:1800+30"]

1. e4 {[%emt 0:00:00]} c5 {[%emt 0:00:00]} 2. Nf3 {[%emt 0:00:00]} e6 {[%emt 0:00:00]} 3. c4 {[%emt 0:00:00]} a6 {[%emt 0:00:00]} 4. Nc3 {[%emt 0:00:02]} Nc6 {[%emt 0:00:33]} 5. d4 {[%emt 0:00:12]} cxd4 {[%emt 0:00:07]} 6. Nxd4 {[%emt 0:00:05]} Qc7 {[%emt 0:00:09]} 7. Be3 {[%emt 0:00:18]} Nf6 {[%emt 0:00:21]} 8. Rc1 {[%emt 0:00:43]} Be7 {[%emt 0:01:08]} 9. Be2 {[%emt 0:00:27]} d6 {[%emt 0:01:43]} 10. f3 {[%emt 0:00:38]} O-O {[%emt 0:00:43]} 11. O-O {[%emt 0:00:35]} Nxd4 {[%emt 0:03:49]} 12. Bxd4 {[%emt 0:04:49]} Nd7 {[%emt 0:03:38]} 13. Qd2 {[%emt 0:02:53]} b6 {[%emt 0:00:40]} 14. Rfd1 {[%emt 0:03:01]} Bb7 {[%emt 0:00:45]} 15. Bf1 {[%emt 0:01:46]} Rac8 {[%emt 0:02:50]} 16. a3 {[%emt 0:07:31]} Qb8 {[%emt 0:01:42]} 17. Qf2 {[%emt 0:04:56]} *

[Event "Panevezys Elite Open 2019"]
[Site "Panevezys"]
[Date "2019.06.30"]
[Round "9.10"]
[White "Stasans, Aivars"]
[Black "Juknis, Paulius"]
[Result "*"]
[ECO "C10"]
[WhiteElo "2039"]
[BlackElo "2169"]
[Annotator "ChessBase"]
[PlyCount "25"]
[EventDate "2019.06.24"]
[EventType "swiss"]
[EventCountry "LTU"]
[SourceTitle "playchess.com"]
[Source "ChessBase"]
[SourceQuality "1"]
[TimeControl "40/5400+30:1800+30"]

1. e4 {[%emt 0:00:00]} e6 {[%emt 0:00:00]} 2. d4 {[%emt 0:00:00]} d5 {[%emt 0:00:00]} 3. Nc3 {[%emt 0:00:00]} Nc6 {[%emt 0:00:00]} 4. e5 {[%emt 0:01:17]} f6 {[%emt 0:00:13]} 5. exf6 {[%emt 0:02:54]} Nxf6 {[%emt 0:00:16]} 6. Nf3 {[%emt 0:00:09]} Bd6 {[%emt 0:01:03]} 7. Bg5 {[%emt 0:05:42]} O-O {[%emt 0:03:38]} 8. Bd3 {[%emt 0:04:53]} Qe8 {[%emt 0:02:47]} 9. Qe2 {[%emt 0:05:13]} Qh5 {[%emt 0:00:54]} 10. Bxf6 {[%emt 0:00:10]} Rxf6 {[%emt 0:00:09]} 11. O-O-O {[%emt 0:00:25]} Bd7 {[%emt 0:00:34]} 12. Bb5 {[%emt 0:04:12]} Raf8 {[%emt 0:06:09]} 13. Rhe1 {[%emt 0:02:00]} *

[Event "Panevezys Elite Open 2019"]
[Site "Panevezys"]
[Date "2019.06.30"]
[Round "9.11"]
[White "Sinitsina, Anastassia"]
[Black "Harshita Guddanti"]
[Result "*"]
[ECO "A14"]
[WhiteElo "2095"]
[BlackElo "2072"]
[Annotator "NA"]
[PlyCount "22"]
[EventDate "2019.06.24"]
[EventType "swiss"]
[EventCountry "LTU"]
[SourceTitle "playchess.com"]
[Source "ChessBase"]
[SourceQuality "1"]
[TimeControl "40/5400+30:1800+30"]

1. Nf3 {[%emt 0:00:00]} Nf6 {[%emt 0:00:15]} 2. g3 {[%emt 0:00:10]} d5 {[%emt 0:00:19]} 3. c4 {[%emt 0:01:17]} e6 {[%emt 0:03:26]} 4. Bg2 {[%emt 0:00:33]} Be7 {[%emt 0:00:28]} 5. O-O {[%emt 0:00:59]} O-O {[%emt 0:00:12]} 6. Qc2 {[%emt 0:01:07]} c5 {[%emt 0:05:27]} 7. d3 {[%emt 0:04:57]} Nc6 {[%emt 0:03:19]} 8. a3 {[%emt 0:01:31]} d4 {[%emt 0:04:01]} 9. e3 {[%emt 0:03:06]} e5 {[%emt 0:01:31]} 10. exd4 {[%emt 0:00:12]} exd4 {[%emt 0:00:45]} 11. Re1 {[%emt 0:07:15]} h6 {[%emt 0:04:01]} *

[Event "Panevezys Elite Open 2019"]
[Site "Panevezys"]
[Date "2019.06.30"]
[Round "9.13"]
[White "Zaura, Vidmantas"]
[Black "Cholleti Sahajasri"]
[Result "*"]
[ECO "A04"]
[WhiteElo "2223"]
[BlackElo "2207"]
[Annotator "ChessBase"]
[PlyCount "24"]
[EventDate "2019.06.24"]
[EventType "swiss"]
[EventCountry "LTU"]
[SourceTitle "playchess.com"]
[Source "ChessBase"]
[SourceQuality "1"]
[TimeControl "40/5400+30:1800+30"]

1. Nf3 {[%emt 0:00:00]} c5 {[%emt 0:04:00]} 2. c4 {[%emt 0:01:45]} Nc6 {[%emt 0:00:43]} 3. Nc3 {[%emt 0:00:08]} g6 {[%emt 0:00:09]} 4. g3 {[%emt 0:00:06]} Bg7 {[%emt 0:00:18]} 5. Bg2 {[%emt 0:00:08]} e6 {[%emt 0:00:24]} 6. e3 {[%emt 0:00:47]} Nge7 {[%emt 0:00:59]} 7. d4 {[%emt 0:00:16]} cxd4 {[%emt 0:02:29]} 8. exd4 {[%emt 0:00:23]} d5 {[%emt 0:00:06]} 9. O-O {[%emt 0:02:24]} O-O {[%emt 0:02:18]} 10. cxd5 {[%emt 0:10:09]} exd5 {[%emt 0:00:47]} 11. Qb3 {[%emt 0:00:13]} Bg4 {[%emt 0:07:40]} 12. Be3 {[%emt 0:06:19]} Qd7 {[%emt 0:02:11]} *